[Event "Titled Tuesday Blitz November 14 Early 2023"]
[White "Garrido, Denis"]
[Black "Sreyas Payyappat"]
[WhiteFideId "601217"]
[BlackFideId "46674969"]
[WhiteElo "2351"]
[BlackElo "2505"]
[Result "1-0"]
[Round "6"]
[TimeControl "180+1"]
[Date "2023.11.14"]
[WhiteClock "0:00:50"]
[BlackClock "0:00:02"]
[Board "137"]

1. e4 {[%clk 0:03:00]}  c6 {[%clk 0:02:59]} 2. d4 {[%clk 0:03:00]}  d5 {[%clk 0:02:58]} 3. e5 {[%clk 0:03:00]}  Bf5 {[%clk 0:02:55]} 4. Nf3 {[%clk 0:03:00]}  e6 {[%clk 0:02:51]} 5. Be2 {[%clk 0:03:00]}  Ne7 {[%clk 0:02:45]} 6. O-O {[%clk 0:02:59]}  Ng6 {[%clk 0:02:43]} 7. Be3 {[%clk 0:02:47]}  Nd7 {[%clk 0:02:38]} 8. Re1 {[%clk 0:02:43]}  f6 {[%clk 0:02:36]} 9. exf6 {[%clk 0:02:42]}  Nxf6 {[%clk 0:02:34]} 10. c4 {[%clk 0:02:42]}  Bd6 {[%clk 0:02:32]} 11. Nc3 {[%clk 0:02:41]}  O-O {[%clk 0:02:31]} 12. cxd5 {[%clk 0:02:35]}  exd5 {[%clk 0:02:29]} 13. Bd3 {[%clk 0:02:32]}  Bxd3 {[%clk 0:02:23]} 14. Qxd3 {[%clk 0:02:31]}  Qc7 {[%clk 0:02:24]} 15. h3 {[%clk 0:02:30]}  Rae8 {[%clk 0:02:22]} 16. Rac1 {[%clk 0:02:28]}  Qb8 {[%clk 0:02:05]} 17. Bg5 {[%clk 0:02:24]}  Nf4 {[%clk 0:01:44]} 18. Bxf4 {[%clk 0:02:20]}  Bxf4 {[%clk 0:01:44]} 19. Rcd1 {[%clk 0:02:20]}  Bd6 {[%clk 0:01:31]} 20. Ng5 {[%clk 0:02:12]}  Qc8 {[%clk 0:01:18]} 21. Re2 {[%clk 0:01:46]}  Bb8 {[%clk 0:01:05]} 22. Rde1 {[%clk 0:01:41]}  Qc7 {[%clk 0:00:41]} 23. g3 {[%clk 0:01:38]}  Rxe2 {[%clk 0:00:30]} 24. Rxe2 {[%clk 0:01:30]}  Qd7 {[%clk 0:00:31]} 25. Kg2 {[%clk 0:01:24]}  h6 {[%clk 0:00:27]} 26. Nf3 {[%clk 0:01:22]}  Qf7 {[%clk 0:00:21]} 27. Ne5 {[%clk 0:01:20]}  Qh5 {[%clk 0:00:19]} 28. f4 {[%clk 0:01:13]}  b6 {[%clk 0:00:11]} 29. Nxc6 {[%clk 0:01:06]}  Bd6 {[%clk 0:00:06]} 30. Ne5 {[%clk 0:01:05]}  Re8 {[%clk 0:00:04]} 31. Qb5 {[%clk 0:01:01]}  Bxe5 {[%clk 0:00:02]} 32. dxe5 {[%clk 0:00:55]}  Ne4 {[%clk 0:00:03]} 33. Qxd5+ {[%clk 0:00:50]}  Kh8 {[%clk 0:00:02]} 1-0


[Site "https://www.chess.com"]

[Event "Titled Tuesday Blitz November 14 Early 2023"]
[White "MIss_MIaMI"]
[Black "Erzhanov, Arman"]
[BlackFideId "4138821"]
[WhiteElo "2349"]
[BlackElo "2503"]
[Result "0-1"]
[Round "6"]
[TimeControl "180+1"]
[Date "2023.11.14"]
[WhiteClock "0:00:00"]
[BlackClock "0:00:58"]
[Board "138"]

1. e4 {[%clk 0:02:58]}  d6 {[%clk 0:03:00]} 2. Nf3 {[%clk 0:02:58]}  Nf6 {[%clk 0:03:00]} 3. Nc3 {[%clk 0:02:58]}  c6 {[%clk 0:02:56]} 4. d4 {[%clk 0:02:55]}  Bg4 {[%clk 0:02:55]} 5. h3 {[%clk 0:02:53]}  Bxf3 {[%clk 0:02:55]} 6. Qxf3 {[%clk 0:02:54]}  e6 {[%clk 0:02:56]} 7. Bd3 {[%clk 0:02:51]}  d5 {[%clk 0:02:56]} 8. e5 {[%clk 0:02:46]}  Nfd7 {[%clk 0:02:56]} 9. Ne2 {[%clk 0:02:40]}  c5 {[%clk 0:02:56]} 10. c3 {[%clk 0:02:39]}  Nc6 {[%clk 0:02:56]} 11. O-O {[%clk 0:02:25]}  Rc8 {[%clk 0:02:55]} 12. Qg3 {[%clk 0:02:20]}  cxd4 {[%clk 0:02:52]} 13. cxd4 {[%clk 0:02:19]}  Nb4 {[%clk 0:02:52]} 14. Bb1 {[%clk 0:02:02]}  Qb6 {[%clk 0:02:47]} 15. Rd1 {[%clk 0:01:38]}  g6 {[%clk 0:02:46]} 16. Nc3 {[%clk 0:01:34]}  h5 {[%clk 0:02:36]} 17. a3 {[%clk 0:01:33]}  Nc6 {[%clk 0:02:35]} 18. Qd3 {[%clk 0:01:32]}  Na5 {[%clk 0:02:33]} 19. b4 {[%clk 0:01:26]}  Nc4 {[%clk 0:02:09]} 20. Ra2 {[%clk 0:01:18]}  Be7 {[%clk 0:01:59]} 21. f4 {[%clk 0:01:10]}  h4 {[%clk 0:01:56]} 22. Kh2 {[%clk 0:01:10]}  Rh5 {[%clk 0:01:56]} 23. Bc2 {[%clk 0:00:57]}  a6 {[%clk 0:01:53]} 24. Na4 {[%clk 0:00:57]}  Qc6 {[%clk 0:01:48]} 25. Nc5 {[%clk 0:00:53]}  Nxc5 {[%clk 0:01:38]} 26. bxc5 {[%clk 0:00:44]}  b6 {[%clk 0:01:38]} 27. Bb3 {[%clk 0:00:39]}  bxc5 {[%clk 0:01:37]} 28. Qc2 {[%clk 0:00:33]}  cxd4 {[%clk 0:01:36]} 29. Ba4 {[%clk 0:00:32]}  Kf8 {[%clk 0:01:29]} 30. Bxc6 {[%clk 0:00:30]}  Rxc6 {[%clk 0:01:30]} 31. Rxd4 {[%clk 0:00:28]}  Nxe5 {[%clk 0:01:30]} 32. Qd1 {[%clk 0:00:22]}  Nc4 {[%clk 0:01:29]} 33. a4 {[%clk 0:00:19]}  Bd6 {[%clk 0:01:29]} 34. Kh1 {[%clk 0:00:17]}  Rf5 {[%clk 0:01:30]} 35. Qf3 {[%clk 0:00:17]}  g5 {[%clk 0:01:29]} 36. Qh5 {[%clk 0:00:15]}  gxf4 {[%clk 0:01:28]} 37. Qh8+ {[%clk 0:00:15]}  Ke7 {[%clk 0:01:27]} 38. Qxh4+ {[%clk 0:00:15]}  Kd7 {[%clk 0:01:28]} 39. Rf2 {[%clk 0:00:12]}  Ne5 {[%clk 0:01:28]} 40. Bxf4 {[%clk 0:00:12]}  Ng6 {[%clk 0:01:28]} 41. Qh6 {[%clk 0:00:09]}  Nxf4 {[%clk 0:01:27]} 42. Rdxf4 {[%clk 0:00:10]}  Rc1+ {[%clk 0:01:27]} 43. Kh2 {[%clk 0:00:10]}  Rc4 {[%clk 0:01:13]} 44. g3 {[%clk 0:00:10]}  Bxf4 {[%clk 0:01:09]} 45. gxf4 {[%clk 0:00:11]}  Rxa4 {[%clk 0:01:09]} 46. Kg3 {[%clk 0:00:09]}  Ra3+ {[%clk 0:01:09]} 47. Rf3 {[%clk 0:00:09]}  Ra1 {[%clk 0:01:08]} 48. Qf8 {[%clk 0:00:06]}  a5 {[%clk 0:01:06]} 49. Qa8 {[%clk 0:00:06]}  a4 {[%clk 0:01:06]} 50. Qa7+ {[%clk 0:00:06]}  Ke8 {[%clk 0:01:06]} 51. Qb8+ {[%clk 0:00:06]}  Ke7 {[%clk 0:01:06]} 52. Qc7+ {[%clk 0:00:06]}  Kf8 {[%clk 0:01:06]} 53. Qd6+ {[%clk 0:00:07]}  Kg7 {[%clk 0:01:06]} 54. Qb4 {[%clk 0:00:07]}  Kh7 {[%clk 0:01:04]} 55. Qb2 {[%clk 0:00:06]}  Rg1+ {[%clk 0:01:02]} 56. Kh2 {[%clk 0:00:05]}  Rg8 {[%clk 0:01:02]} 57. Rf2 {[%clk 0:00:06]}  Ra8 {[%clk 0:01:01]} 58. Qa3 {[%clk 0:00:06]}  d4 {[%clk 0:00:56]} 59. Rf3 {[%clk 0:00:07]}  Rd5 {[%clk 0:00:56]} 60. Qd3+ {[%clk 0:00:04]}  Kg7 {[%clk 0:00:55]} 61. Rg3+ {[%clk 0:00:04]}  Kf8 {[%clk 0:00:56]} 62. Qa3+ {[%clk 0:00:04]}  Ke8 {[%clk 0:00:56]} 63. Rg8+ {[%clk 0:00:03]}  Kd7 {[%clk 0:00:57]} 64. Rxa8 {[%clk 0:00:00]}  d3 {[%clk 0:00:58]} 0-1


[Site "https://www.chess.com"]

[Event "Titled Tuesday Blitz November 14 Early 2023"]
[White "Shishkov, Andrei"]
[Black "Bobomurodova, Maftuna"]
[WhiteFideId "4500563"]
[BlackFideId "14207400"]
[WhiteElo "2483"]
[BlackElo "2327"]
[Result "0-1"]
[Round "6"]
[TimeControl "180+1"]
[Date "2023.11.14"]
[WhiteClock "0:00:00"]
[BlackClock "0:00:26"]
[Board "143"]

1. d4 {[%clk 0:03:00]}  Nf6 {[%clk 0:02:59]} 2. c4 {[%clk 0:02:59]}  e6 {[%clk 0:02:57]} 3. Nc3 {[%clk 0:02:59]}  Bb4 {[%clk 0:02:55]} 4. Qc2 {[%clk 0:02:59]}  O-O {[%clk 0:02:52]} 5. e4 {[%clk 0:02:59]}  Bxc3+ {[%clk 0:02:51]} 6. bxc3 {[%clk 0:02:57]}  d6 {[%clk 0:02:48]} 7. Bd3 {[%clk 0:02:58]}  e5 {[%clk 0:02:47]} 8. Ne2 {[%clk 0:02:58]}  b6 {[%clk 0:02:44]} 9. O-O {[%clk 0:02:57]}  Nc6 {[%clk 0:02:42]} 10. f4 {[%clk 0:02:55]}  Re8 {[%clk 0:02:38]} 11. fxe5 {[%clk 0:02:49]}  dxe5 {[%clk 0:02:37]} 12. d5 {[%clk 0:02:50]}  Ne7 {[%clk 0:02:32]} 13. Ng3 {[%clk 0:02:28]}  Nd7 {[%clk 0:02:25]} 14. Be3 {[%clk 0:02:06]}  c6 {[%clk 0:02:00]} 15. Rf3 {[%clk 0:01:56]}  Qc7 {[%clk 0:01:56]} 16. Raf1 {[%clk 0:01:54]}  f6 {[%clk 0:01:56]} 17. Nh5 {[%clk 0:01:50]}  Qd6 {[%clk 0:01:51]} 18. Rg3 {[%clk 0:01:41]}  Ng6 {[%clk 0:01:51]} 19. c5 {[%clk 0:01:26]}  bxc5 {[%clk 0:01:49]} 20. Bc4 {[%clk 0:01:26]}  Nb6 {[%clk 0:01:45]} 21. Qe2 {[%clk 0:01:24]}  Nxc4 {[%clk 0:01:44]} 22. Qxc4 {[%clk 0:01:24]}  cxd5 {[%clk 0:01:36]} 23. exd5 {[%clk 0:01:21]}  Ba6 {[%clk 0:01:36]} 24. Qe4 {[%clk 0:01:05]}  Bxf1 {[%clk 0:01:33]} 25. Rxg6 {[%clk 0:00:46]}  hxg6 {[%clk 0:01:23]} 26. Qxg6 {[%clk 0:00:47]}  Re7 {[%clk 0:01:20]} 27. Kxf1 {[%clk 0:00:41]}  Rb8 {[%clk 0:01:19]} 28. c4 {[%clk 0:00:16]}  Rf7 {[%clk 0:01:14]} 29. g4 {[%clk 0:00:16]}  Qa6 {[%clk 0:01:12]} 30. Kg2 {[%clk 0:00:14]}  Qxc4 {[%clk 0:01:10]} 31. g5 {[%clk 0:00:12]}  Rb2+ {[%clk 0:01:09]} 32. Kg3 {[%clk 0:00:12]}  Qe2 {[%clk 0:01:02]} 33. Nxf6+ {[%clk 0:00:12]}  Rxf6 {[%clk 0:01:00]} 34. Qe8+ {[%clk 0:00:12]}  Rf8 {[%clk 0:00:59]} 35. Qe6+ {[%clk 0:00:12]}  Kh7 {[%clk 0:00:51]} 36. Qh3+ {[%clk 0:00:12]}  Kg6 {[%clk 0:00:49]} 37. Qe6+ {[%clk 0:00:12]}  Rf6 {[%clk 0:00:44]} 38. Qe8+ {[%clk 0:00:11]}  Kf5 {[%clk 0:00:31]} 39. Qd7+ {[%clk 0:00:07]}  Ke4 {[%clk 0:00:30]} 40. Bxc5 {[%clk 0:00:04]}  Rf3+ {[%clk 0:00:26]} 41. Kh4 {[%clk 0:00:00]}  Qxh2+ {[%clk 0:00:26]} 0-1


[Site "https://www.chess.com"]

[Event "Titled Tuesday Blitz November 14 Early 2023"]
[White "Pinero Rodriguez, Carlos Jose"]
[Black "Osmonbekov, Talaibek"]
[WhiteFideId "3901726"]
[BlackFideId "2017253"]
[WhiteElo "2480"]
[BlackElo "2318"]
[Result "0-1"]
[Round "6"]
[TimeControl "180+1"]
[Date "2023.11.14"]
[WhiteClock "0:01:57"]
[BlackClock "0:01:37"]
[Board "144"]

1. e4 {[%clk 0:03:00]}  c5 {[%clk 0:02:59]} 2. Nf3 {[%clk 0:03:00]}  d6 {[%clk 0:02:59]} 3. d4 {[%clk 0:03:00]}  cxd4 {[%clk 0:03:00]} 4. Nxd4 {[%clk 0:03:01]}  Nf6 {[%clk 0:03:00]} 5. Nc3 {[%clk 0:03:01]}  g6 {[%clk 0:03:01]} 6. Be3 {[%clk 0:03:01]}  Bg7 {[%clk 0:03:00]} 7. f3 {[%clk 0:03:02]}  O-O {[%clk 0:02:59]} 8. Bc4 {[%clk 0:03:02]}  Nc6 {[%clk 0:03:00]} 9. Bb3 {[%clk 0:03:02]}  Nxd4 {[%clk 0:02:41]} 10. Bxd4 {[%clk 0:03:02]}  Be6 {[%clk 0:02:42]} 11. O-O {[%clk 0:03:00]}  Bxb3 {[%clk 0:02:35]} 12. axb3 {[%clk 0:03:00]}  a6 {[%clk 0:02:35]} 13. Qd2 {[%clk 0:02:59]}  Rc8 {[%clk 0:02:26]} 14. Rfd1 {[%clk 0:02:59]}  Qc7 {[%clk 0:02:26]} 15. Qf2 {[%clk 0:02:56]}  h5 {[%clk 0:02:18]} 16. Rac1 {[%clk 0:02:48]}  Qc6 {[%clk 0:02:07]} 17. Ne2 {[%clk 0:02:36]}  b5 {[%clk 0:01:57]} 18. b4 {[%clk 0:02:22]}  Qc4 {[%clk 0:01:46]} 19. c3 {[%clk 0:02:16]}  Qb3 {[%clk 0:01:41]} 20. Ra1 {[%clk 0:02:11]}  Rc6 {[%clk 0:01:38]} 21. Nc1 {[%clk 0:01:57]}  Qxd1+ {[%clk 0:01:37]} 0-1


[Site "https://www.chess.com"]

[Event "Titled Tuesday Blitz November 14 Early 2023"]
[White "Yurasova, Daria"]
[Black "SicilianPanzer"]
[WhiteFideId "34146919"]
[WhiteElo "2478"]
[BlackElo "2315"]
[Result "1-0"]
[Round "6"]
[TimeControl "180+1"]
[Date "2023.11.14"]
[WhiteClock "0:01:56"]
[BlackClock "0:00:13"]
[Board "145"]

1. d4 {[%clk 0:02:52]}  Nf6 {[%clk 0:02:56]} 2. Bg5 {[%clk 0:02:53]}  d5 {[%clk 0:02:55]} 3. Bxf6 {[%clk 0:02:53]}  exf6 {[%clk 0:02:55]} 4. e3 {[%clk 0:02:54]}  Be6 {[%clk 0:02:53]} 5. g3 {[%clk 0:02:54]}  Bd6 {[%clk 0:02:50]} 6. Bg2 {[%clk 0:02:55]}  c6 {[%clk 0:02:50]} 7. Ne2 {[%clk 0:02:55]}  Nd7 {[%clk 0:02:50]} 8. Nd2 {[%clk 0:02:56]}  Rc8 {[%clk 0:02:45]} 9. Rc1 {[%clk 0:02:56]}  h5 {[%clk 0:02:42]} 10. h4 {[%clk 0:02:52]}  Qa5 {[%clk 0:02:16]} 11. a3 {[%clk 0:02:50]}  Bg4 {[%clk 0:02:10]} 12. c4 {[%clk 0:02:44]}  dxc4 {[%clk 0:02:08]} 13. Rxc4 {[%clk 0:02:43]}  Qb5 {[%clk 0:01:36]} 14. Rc3 {[%clk 0:02:29]}  a5 {[%clk 0:01:31]} 15. Nc4 {[%clk 0:02:26]}  Be7 {[%clk 0:01:24]} 16. Qb3 {[%clk 0:02:21]}  Qf5 {[%clk 0:00:41]} 17. Qxb7 {[%clk 0:02:09]}  O-O {[%clk 0:00:37]} 18. e4 {[%clk 0:01:59]}  Qe6 {[%clk 0:00:36]} 19. Nf4 {[%clk 0:01:58]}  Rb8 {[%clk 0:00:19]} 20. Nxe6 {[%clk 0:01:55]}  Rxb7 {[%clk 0:00:13]} 21. Nxf8 {[%clk 0:01:56]} 1-0


[Site "https://www.chess.com"]

[Event "Titled Tuesday Blitz November 14 Early 2023"]
[White "Ardila, Oscar Humberto"]
[Black "Aash20"]
[WhiteFideId "4404742"]
[WhiteElo "2324"]
[BlackElo "2464"]
[Result "0-1"]
[Round "6"]
[TimeControl "180+1"]
[Date "2023.11.14"]
[WhiteClock "0:00:04"]
[BlackClock "0:02:24"]
[Board "149"]

1. d4 {[%clk 0:02:46]}  d5 {[%clk 0:02:55]} 2. c4 {[%clk 0:02:46]}  c6 {[%clk 0:02:54]} 3. Nc3 {[%clk 0:02:45]}  dxc4 {[%clk 0:02:53]} 4. a4 {[%clk 0:02:45]}  e5 {[%clk 0:02:52]} 5. dxe5 {[%clk 0:02:42]}  Qxd1+ {[%clk 0:02:51]} 6. Kxd1 {[%clk 0:02:37]}  Be6 {[%clk 0:02:51]} 7. f4 {[%clk 0:02:36]}  Na6 {[%clk 0:02:46]} 8. Nf3 {[%clk 0:02:11]}  O-O-O+ {[%clk 0:02:45]} 9. Bd2 {[%clk 0:02:10]}  Nc5 {[%clk 0:02:40]} 10. e3 {[%clk 0:01:35]}  Nb3 {[%clk 0:02:36]} 11. Ra2 {[%clk 0:01:34]}  Bg4 {[%clk 0:02:34]} 12. Nb1 {[%clk 0:01:27]}  Bxf3+ {[%clk 0:02:34]} 13. gxf3 {[%clk 0:01:28]}  Bb4 {[%clk 0:02:34]} 14. Bxc4 {[%clk 0:01:24]}  Nxd2 {[%clk 0:02:34]} 15. Bxf7 {[%clk 0:01:11]}  Nxb1+ {[%clk 0:02:30]} 16. Kc2 {[%clk 0:01:12]}  Nd2 {[%clk 0:02:29]} 17. Rd1 {[%clk 0:01:07]}  Nh6 {[%clk 0:02:24]} 18. Be6+ {[%clk 0:00:04]}  Kc7 {[%clk 0:02:24]} 0-1


[Site "https://www.chess.com"]

[Event "Titled Tuesday Blitz November 14 Early 2023"]
[White "Witty_Alien"]
[Black "WindWhistler11"]
[WhiteElo "2267"]
[BlackElo "2452"]
[Result "0-1"]
[Round "6"]
[TimeControl "180+1"]
[Date "2023.11.14"]
[WhiteClock "0:00:00"]
[BlackClock "0:00:50"]
[Board "151"]

1. e4 {[%clk 0:03:00]}  e6 {[%clk 0:02:59]} 2. d4 {[%clk 0:02:59]}  d5 {[%clk 0:02:59]} 3. exd5 {[%clk 0:02:55]}  exd5 {[%clk 0:02:59]} 4. c4 {[%clk 0:02:54]}  Nf6 {[%clk 0:02:59]} 5. Nf3 {[%clk 0:02:54]}  Nc6 {[%clk 0:02:59]} 6. Nc3 {[%clk 0:02:53]}  Bb4 {[%clk 0:02:58]} 7. Bd3 {[%clk 0:02:53]}  Bg4 {[%clk 0:02:57]} 8. O-O {[%clk 0:02:52]}  O-O {[%clk 0:02:57]} 9. Bg5 {[%clk 0:02:49]}  dxc4 {[%clk 0:02:55]} 10. Bxc4 {[%clk 0:02:50]}  Be7 {[%clk 0:02:49]} 11. Re1 {[%clk 0:02:38]}  h6 {[%clk 0:02:45]} 12. Bh4 {[%clk 0:02:19]}  Bxf3 {[%clk 0:02:42]} 13. Qxf3 {[%clk 0:02:18]}  Qxd4 {[%clk 0:02:42]} 14. Bxf6 {[%clk 0:01:10]}  Qxf6 {[%clk 0:02:27]} 15. Qh5 {[%clk 0:00:55]}  Bd6 {[%clk 0:02:19]} 16. Ne4 {[%clk 0:00:45]}  Qe5 {[%clk 0:02:11]} 17. Qh3 {[%clk 0:00:33]}  Rae8 {[%clk 0:02:06]} 18. Re3 {[%clk 0:00:27]}  Qxb2 {[%clk 0:02:03]} 19. Rae1 {[%clk 0:00:26]}  Bb4 {[%clk 0:01:35]} 20. Nf6+ {[%clk 0:00:19]}  Qxf6 {[%clk 0:01:32]} 21. Rxe8 {[%clk 0:00:19]}  Bxe1 {[%clk 0:01:31]} 22. Rxe1 {[%clk 0:00:09]}  Ne5 {[%clk 0:01:25]} 23. Bb3 {[%clk 0:00:09]}  Re8 {[%clk 0:01:24]} 24. Kh1 {[%clk 0:00:06]}  Qxf2 {[%clk 0:01:22]} 25. Rg1 {[%clk 0:00:01]}  Qe2 {[%clk 0:01:08]} 26. Qh4 {[%clk 0:00:01]}  Ng4 {[%clk 0:00:58]} 27. h3 {[%clk 0:00:01]}  Nf2+ {[%clk 0:00:57]} 28. Kh2 {[%clk 0:00:01]}  Ne4 {[%clk 0:00:55]} 29. Kh1 {[%clk 0:00:01]}  Qd2 {[%clk 0:00:50]} 30. Kh2 {[%clk 0:00:01]}  Qd6+ {[%clk 0:00:49]} 31. Kh1 {[%clk 0:00:01]}  Ng3+ {[%clk 0:00:49]} 32. Kh2 {[%clk 0:00:02]}  Nf5+ {[%clk 0:00:50]} 33. Qf4 {[%clk 0:00:00]}  Qxf4+ {[%clk 0:00:50]} 0-1


[Site "https://www.chess.com"]

[Event "Titled Tuesday Blitz November 14 Early 2023"]
[White "Thake, Conrad"]
[Black "Ghosh, Chanchal Kumer"]
[WhiteFideId "5602947"]
[BlackFideId "10201858"]
[WhiteElo "1903"]
[BlackElo "2136"]
[Result "0-1"]
[Round "6"]
[TimeControl "180+1"]
[Date "2023.11.14"]
[WhiteClock "0:00:00"]
[BlackClock "0:00:02"]
[Board "155"]

1. e4 {[%clk 0:03:00]}  c5 {[%clk 0:02:54]} 2. Nf3 {[%clk 0:03:00]}  d6 {[%clk 0:02:53]} 3. d4 {[%clk 0:02:59]}  cxd4 {[%clk 0:02:53]} 4. Nxd4 {[%clk 0:02:58]}  Nf6 {[%clk 0:02:34]} 5. Nc3 {[%clk 0:02:57]}  a6 {[%clk 0:02:29]} 6. Be3 {[%clk 0:02:55]}  e6 {[%clk 0:02:29]} 7. Be2 {[%clk 0:02:48]}  Be7 {[%clk 0:02:13]} 8. O-O {[%clk 0:02:48]}  O-O {[%clk 0:02:13]} 9. f4 {[%clk 0:02:48]}  b6 {[%clk 0:02:12]} 10. Bf3 {[%clk 0:02:48]}  Bb7 {[%clk 0:02:12]} 11. Qe2 {[%clk 0:02:42]}  Qc7 {[%clk 0:02:12]} 12. Rad1 {[%clk 0:02:40]}  Nbd7 {[%clk 0:02:12]} 13. Kh1 {[%clk 0:02:27]}  Nc5 {[%clk 0:01:48]} 14. Bc1 {[%clk 0:02:12]}  b5 {[%clk 0:01:48]} 15. g4 {[%clk 0:02:11]}  b4 {[%clk 0:01:39]} 16. g5 {[%clk 0:02:11]}  bxc3 {[%clk 0:01:26]} 17. gxf6 {[%clk 0:02:11]}  cxb2 {[%clk 0:01:22]} 18. Bxb2 {[%clk 0:02:01]}  Bxf6 {[%clk 0:01:22]} 19. Rg1 {[%clk 0:01:39]}  Qb6 {[%clk 0:01:05]} 20. Rb1 {[%clk 0:01:26]}  Na4 {[%clk 0:00:51]} 21. Ba1 {[%clk 0:01:21]}  Qc7 {[%clk 0:00:42]} 22. Qg2 {[%clk 0:01:03]}  g6 {[%clk 0:00:20]} 23. f5 {[%clk 0:00:56]}  exf5 {[%clk 0:00:19]} 24. Nxf5 {[%clk 0:00:52]}  Bxa1 {[%clk 0:00:18]} 25. Rxa1 {[%clk 0:00:52]}  Rfe8 {[%clk 0:00:14]} 26. Qg5 {[%clk 0:00:44]}  Qd8 {[%clk 0:00:12]} 27. Qh6 {[%clk 0:00:42]}  Qf6 {[%clk 0:00:12]} 28. Rae1 {[%clk 0:00:33]}  Re5 {[%clk 0:00:10]} 29. Qf4 {[%clk 0:00:24]}  Rxf5 {[%clk 0:00:08]} 30. exf5 {[%clk 0:00:24]}  Bxf3+ {[%clk 0:00:08]} 31. Qxf3 {[%clk 0:00:23]}  Rc8 {[%clk 0:00:07]} 32. Qb7 {[%clk 0:00:16]}  Rxc2 {[%clk 0:00:07]} 33. fxg6 {[%clk 0:00:10]}  hxg6 {[%clk 0:00:07]} 34. Qb8+ {[%clk 0:00:05]}  Kg7 {[%clk 0:00:06]} 35. Qb3 {[%clk 0:00:00]}  Qf5 {[%clk 0:00:02]} 0-1


[Site "https://www.chess.com"]

[Event "Titled Tuesday Blitz November 14 Early 2023"]
[White "Lehtosaari, Mauri"]
[Black "Politov, Pavel Y."]
[WhiteFideId "501999"]
[BlackFideId "24110515"]
[WhiteElo "2514"]
[BlackElo "2114"]
[Result "1-0"]
[Round "6"]
[TimeControl "180+1"]
[Date "2023.11.14"]
[WhiteClock "0:00:15"]
[BlackClock "0:00:09"]
[Board "156"]

1. d4 {[%clk 0:02:59]}  d5 {[%clk 0:02:58]} 2. Nf3 {[%clk 0:02:59]}  Nf6 {[%clk 0:02:57]} 3. Bg5 {[%clk 0:02:59]}  Ne4 {[%clk 0:02:56]} 4. Bf4 {[%clk 0:03:00]}  c5 {[%clk 0:02:56]} 5. e3 {[%clk 0:02:57]}  Nc6 {[%clk 0:02:54]} 6. c3 {[%clk 0:02:57]}  Qb6 {[%clk 0:02:53]} 7. Qb3 {[%clk 0:02:57]}  c4 {[%clk 0:02:45]} 8. Qxb6 {[%clk 0:02:57]}  axb6 {[%clk 0:02:44]} 9. Nfd2 {[%clk 0:02:58]}  Nxd2 {[%clk 0:02:42]} 10. Nxd2 {[%clk 0:02:58]}  b5 {[%clk 0:02:43]} 11. e4 {[%clk 0:02:53]}  e6 {[%clk 0:02:39]} 12. Be2 {[%clk 0:02:54]}  b4 {[%clk 0:02:38]} 13. Bf3 {[%clk 0:02:53]}  bxc3 {[%clk 0:02:28]} 14. bxc3 {[%clk 0:02:54]}  Ra5 {[%clk 0:02:20]} 15. a4 {[%clk 0:02:48]}  Kd8 {[%clk 0:01:49]} 16. O-O {[%clk 0:02:36]}  Be7 {[%clk 0:01:46]} 17. Rfb1 {[%clk 0:02:28]}  g5 {[%clk 0:01:42]} 18. Bg3 {[%clk 0:02:20]}  h5 {[%clk 0:01:42]} 19. h3 {[%clk 0:02:18]}  h4 {[%clk 0:01:36]} 20. Bh2 {[%clk 0:02:13]}  Bf6 {[%clk 0:01:34]} 21. Rb5 {[%clk 0:02:04]}  Rxb5 {[%clk 0:01:12]} 22. axb5 {[%clk 0:02:04]}  Nxd4 {[%clk 0:01:12]} 23. cxd4 {[%clk 0:01:58]}  Bxd4 {[%clk 0:01:12]} 24. Rd1 {[%clk 0:01:53]}  c3 {[%clk 0:00:56]} 25. Nb3 {[%clk 0:01:48]}  e5 {[%clk 0:00:52]} 26. Nxd4 {[%clk 0:00:58]}  exd4 {[%clk 0:00:51]} 27. Rxd4 {[%clk 0:00:56]}  c2 {[%clk 0:00:21]} 28. Rxd5+ {[%clk 0:00:55]}  Bd7 {[%clk 0:00:19]} 29. Rc5 {[%clk 0:00:51]}  Bxb5 {[%clk 0:00:18]} 30. Rxc2 {[%clk 0:00:48]}  Bc6 {[%clk 0:00:16]} 31. Be5 {[%clk 0:00:42]}  Rh6 {[%clk 0:00:15]} 32. Bd4 {[%clk 0:00:29]}  Ke7 {[%clk 0:00:12]} 33. e5 {[%clk 0:00:26]}  Bxf3 {[%clk 0:00:10]} 34. gxf3 {[%clk 0:00:27]}  Rc6 {[%clk 0:00:10]} 35. Rb2 {[%clk 0:00:24]}  Rc1+ {[%clk 0:00:08]} 36. Kg2 {[%clk 0:00:25]}  Rc7 {[%clk 0:00:08]} 37. Be3 {[%clk 0:00:23]}  Ke6 {[%clk 0:00:08]} 38. Bxg5 {[%clk 0:00:21]}  Kxe5 {[%clk 0:00:08]} 39. Bxh4 {[%clk 0:00:22]}  f5 {[%clk 0:00:07]} 40. Bg3+ {[%clk 0:00:18]}  f4 {[%clk 0:00:07]} 41. Rb5+ {[%clk 0:00:19]}  Kd4 {[%clk 0:00:05]} 42. Bxf4 {[%clk 0:00:18]}  Rg7+ {[%clk 0:00:06]} 43. Bg3 {[%clk 0:00:19]}  Kc4 {[%clk 0:00:05]} 44. Rb6 {[%clk 0:00:17]}  Kc5 {[%clk 0:00:05]} 45. Rb1 {[%clk 0:00:17]}  Kc4 {[%clk 0:00:05]} 46. f4 {[%clk 0:00:17]}  b5 {[%clk 0:00:05]} 47. f5 {[%clk 0:00:16]}  b4 {[%clk 0:00:05]} 48. Kf3 {[%clk 0:00:16]}  Rf7 {[%clk 0:00:05]} 49. Ke4 {[%clk 0:00:16]}  b3 {[%clk 0:00:05]} 50. Be5 {[%clk 0:00:16]}  Re7 {[%clk 0:00:05]} 51. f6 {[%clk 0:00:17]}  Rf7 {[%clk 0:00:05]} 52. Kf5 {[%clk 0:00:17]}  Kb4 {[%clk 0:00:04]} 53. f4 {[%clk 0:00:17]}  Ka3 {[%clk 0:00:04]} 54. Kg6 {[%clk 0:00:17]}  Ka2 {[%clk 0:00:04]} 55. Rb2+ {[%clk 0:00:16]}  Ka3 {[%clk 0:00:04]} 56. Kxf7 {[%clk 0:00:16]}  Ka4 {[%clk 0:00:04]} 57. Rxb3 {[%clk 0:00:16]}  Kxb3 {[%clk 0:00:04]} 58. Ke6 {[%clk 0:00:16]}  Kc4 {[%clk 0:00:05]} 59. f7 {[%clk 0:00:16]}  Kc5 {[%clk 0:00:06]} 60. f8=Q+ {[%clk 0:00:16]}  Kc4 {[%clk 0:00:07]} 61. Qd6 {[%clk 0:00:16]}  Kb3 {[%clk 0:00:07]} 62. Qd4 {[%clk 0:00:16]}  Kc2 {[%clk 0:00:08]} 63. Qe3 {[%clk 0:00:15]}  Kb1 {[%clk 0:00:08]} 64. Qf2 {[%clk 0:00:15]}  Kc1 {[%clk 0:00:08]} 65. Bc3 {[%clk 0:00:15]}  Kd1 {[%clk 0:00:09]} 66. Qd2# {[%clk 0:00:15]} 1-0


[Site "https://www.chess.com"]